bitfinex/quotes_ETHUSD_20260108
["timestamp","ask_amount","ask_price","bid_price","bid_amount"]
[1767856822532,6.42425798,3113.2,3112.8,0.002]
[1767856824559,3.21212899,3113.2,3112.8,0.002]
[1767856824750,1.42619348,3113.1,3112.8,0.002]
[1767856827172,4.63851587,3113.1,3112.8,0.002]
[1767856827981,1.42619348,3113.1,3112.8,0.002]
[1767856828283,3.21215678,3113.2,3112.8,0.002]
[1767856828681,6.42431356,3113.2,3112.8,0.002]
[1767856830575,11.48294188,3113.2,3112.8,0.002]
[1767856830749,6.42431356,3113.2,3112.8,0.002]
[1767856830949,11.48294188,3113.2,3112.8,0.002]
[1767856831143,1.42620683,3113.1,3112.8,0.002]
[1767856831346,3.21215678,3113.2,3112.8,2.86696316]
[1767856831774,0.001,3112.9,3112.8,2.86696316]
[1767856832549,3.21161319,3113.7,3112.9,3.19947821]
[1767856832747,3.21161319,3113.7,3113.1,3.19947821]
[1767856833875,4.04854419,3113.8,3113.1,3.19947821]
[1767856834378,0.837,3113.8,3113.2,3.19947821]
[1767856834580,5.05862832,3114.2,3113.3,3.19947821]
[1767856834581,3.21111839,3114.2,3113.3,3.19947821]
[1767856835108,2.82519293,3114.1,3113.2,5.05862832]
[1767856835475,2.82519293,3114.0,3113.1,5.88443897]
[1767856835888,2.82519293,3114.0,3113.1,9.09666701]
[1767856836103,2.82519293,3114.0,3113.2,1.22961452]
[1767856836787,2.8316656,3113.9,3113.2,1.22961452]
[1767856839707,2.83797253,3113.8,3113.2,1.22961452]
[1767856840112,3.21144096,3113.9,3113.3,3.19947821]
[1767856841009,6.42198888,3114.3,3113.3,3.19947821]
[1767856841183,1.51542477,3114.2,3113.3,3.19947821]
[1767856843016,6.42240132,3114.1,3113.3,3.19947821]
[1767856843199,3.21120066,3114.1,3113.3,3.19947821]
[1767856843497,6.42240132,3114.1,3113.3,3.19947821]
[1767856843700,0.001,3113.7,3113.3,3.19947821]
[1767856843905,0.001,3113.7,3113.4,3.19947821]
[1767856845327,8.02407993,3113.7,3112.8,0.002]
[1767856845616,2.96445161,3113.6,3112.8,3.20147821]
[1767856846622,2.96445161,3113.6,3112.8,0.002]
[1767856846623,2.96445161,3113.2,3112.8,0.002]
[1767856846823,8.02307993,3113.2,3112.8,0.002]
[1767856846980,5.05862832,3113.0,3112.4,0.002]
[1767856847184,9.38932873,3112.9,3112.4,0.002]
[1767856848442,6.17689017,3112.9,3112.4,0.002]
[1767856848644,1.11183392,3112.8,3112.4,0.002]
[1767856849724,3.21264497,3112.7,3112.4,0.002]
[1767856851941,4.32437744,3112.8,3112.4,0.002]
[1767856852729,6.17699513,3112.8,3112.4,0.002]
[1767856852935,3.21254352,3112.8,3112.4,0.002]
[1767856853329,3.21246215,3112.9,3112.4,3.20147821]
[1767856853733,3.21215372,3113.2,3112.4,3.20147821]
[1767856854040,9.38831956,3113.4,3112.4,3.20147821]
[1767856854354,1.01907276,3113.3,3112.4,3.20147821]
[1767856855056,3.98352437,3113.3,3112.4,3.20147821]
[1767856855549,2.96445161,3113.1,3112.4,0.002]
[1767856856254,2.96445161,3112.9,3112.4,0.002]
[1767856856448,3.90336384,3112.9,3112.4,0.002]
[1767856858336,7.11586772,3112.9,3112.4,0.002]
[1767856859937,4.15141611,3112.9,3112.4,0.002]
[1767856860126,0.93891223,3112.9,3112.4,0.002]
[1767856860328,0.93891223,3112.9,3112.4,3.20147821]
[1767856860530,2.96445161,3113.1,3112.4,3.20147821]
[1767856860732,3.21233536,3113.0,3112.4,3.20147821]
[1767856862163,3.98260559,3113.5,3112.5,3.15131081]
[1767856862350,3.98260559,3113.5,3112.4,5.06617784]
[1767856862351,0.838,3113.5,3112.6,3.15131081]
[1767856862659,3.21192265,3113.4,3112.6,3.15131081]
[1767856863746,9.41492115,3113.4,3112.6,3.15131081]
[1767856863952,1.02529211,3113.3,3112.6,3.15131081]
[1767856864677,2.99107585,3113.1,3112.4,0.002]
[1767856866185,3.21212899,3113.2,3112.4,2.93998793]
[1767856866363,6.42425798,3113.2,3112.4,2.93998793]
[1767856866749,0.001,3113.1,3112.4,2.93998793]
[1767856866984,0.001,3113.1,3112.4,3.55549896]
[1767856867783,0.001,3113.1,3112.5,2.93798793]
[1767856868853,0.001,3113.1,3112.4,0.002]
[1767856868854,2.99107585,3113.0,3112.4,0.002]
[1767856871100,3.21243856,3112.9,3112.4,0.002]
[1767856872683,4.15411433,3112.9,3112.4,2.93998793]
[1767856874299,2.99207585,3113.1,3112.4,2.93998793]
[1767856874673,0.001,3113.1,3112.4,2.93998793]
[1767856874874,3.21233536,3113.0,3112.4,2.93998793]
[1767856875072,3.21323403,3113.1,3112.4,2.93998793]
[1767856875290,0.001,3113.1,3112.5,2.93798793]
[1767856875596,0.001,3113.1,3112.5,3.23218672]
[1767856878478,0.001,3112.8,3112.5,3.23218672]
[1767856884505,0.001,3113.1,3112.8,2.93798793]
[1767856886406,0.839,3113.7,3112.9,2.93798793]
[1767856886407,3.21263831,3113.7,3112.9,2.93798793]
[1767856886578,3.21263831,3113.7,3113.1,2.93798793]
[1767856887480,5.06417784,3114.5,3113.1,2.93798793]
[1767856887481,2.99207585,3114.4,3113.5,2.93798793]
[1767856887712,0.001,3114.4,3113.6,2.93798793]
[1767856887913,0.001,3114.4,3113.7,2.93798793]
[1767856890486,0.001,3114.4,3113.8,2.93798793]
[1767856893171,2.99107585,3114.5,3113.8,2.93798793]
[1767856893172,3.13938808,3114.9,3114.2,3.0033301]
[1767856893322,3.20884115,3116.4,3114.2,3.0033301]
[1767856893323,3.13938808,3115.4,3114.2,3.0033301]
[1767856893521,3.13938808,3115.4,3114.5,3.0033301]
[1767856894148,3.13938808,3115.3,3114.5,3.0033301]
[1767856895925,3.13938808,3115.1,3114.5,3.0033301]
[1767856897921,6.34938955,3115.3,3114.5,3.0033301]
[1767856898126,3.13938808,3115.2,3114.5,3.0033301]
[1767856898844,3.13938808,3115.4,3114.5,3.30366311]
[1767856900048,3.20996372,3115.3,3114.5,3.30366311]
[1767856900434,3.13938808,3115.4,3114.5,3.30366311]
[1767856900640,3.13938808,3115.4,3114.6,3.0033301]
[1767856900837,6.34927989,3115.4,3114.6,3.0033301]
[1767856901033,6.34927989,3115.4,3114.5,0.30033301]
[1767856901034,6.34927989,3115.4,3114.8,3.0033301]
[1767856903143,3.20989181,3115.4,3114.8,3.0033301]
[1767856904463,3.13938808,3115.4,3114.5,0.30033301]
[1767856905238,3.13938808,3115.4,3114.4,3.0033301]
[1767856906337,3.20996372,3115.3,3114.4,3.0033301]
[1767856907047,3.20996372,3115.3,3114.7,3.0033301]
[1767856907048,3.00996372,3115.3,3114.7,3.0033301]
[1767856907256,3.20990336,3115.4,3114.7,3.0033301]
[1767856909482,6.34919283,3115.5,3114.7,3.0033301]
[1767856909781,5.39334116,3115.6,3114.9,3.0033301]
[1767856909782,1.3456792,3115.6,3114.9,3.0033301]
[1767856910186,4.55535066,3115.6,3114.9,3.0033301]
[1767856910759,1.3456792,3115.6,3114.9,3.0033301]
[1767856911177,1.3456792,3115.6,3115.0,3.0033301]
[1767856911462,1.3456792,3115.6,3115.2,3.0033301]
[1767856912266,3.13938808,3115.9,3115.1,0.62136953]
[1767856912662,3.13938808,3115.9,3115.1,5.67503265]
[1767856912862,3.20905952,3116.2,3115.1,8.88518465]
[1767856913073,2.88539214,3116.0,3115.2,3.0033301]
[1767856913268,2.88539214,3116.0,3115.3,0.49396036]
[1767856913484,2.88539214,3116.0,3115.2,3.0033301]
[1767856913676,2.88539214,3115.8,3115.0,3.0033301]
[1767856915082,2.88450657,3116.0,3115.1,3.0033301]
[1767856917498,3.20934561,3115.9,3115.2,3.0033301]
[1767856917695,3.20934561,3115.9,3115.1,5.05366312]
[1767856917696,3.20934561,3115.9,3115.4,3.0033301]
[1767856918195,6.09379588,3116.0,3115.4,3.0033301]
[1767856920708,3.13938808,3115.4,3114.1,3.21110065]
[1767856920890,3.13938808,3115.4,3114.4,3.0033301]
[1767856921076,3.13938808,3115.4,3114.5,4.13012475]
[1767856921406,3.13938808,3115.4,3114.6,3.0033301]
[1767856921606,3.13938808,3115.3,3114.6,3.0033301]
[1767856921976,3.13938808,3115.3,3114.3,8.05699322]
[1767856922309,3.02660076,3115.1,3114.3,5.05366312]
[1767856923424,3.20989889,3115.4,3114.4,2.97897432]
[1767856923603,2.95514326,3115.3,3114.4,2.97897432]
[1767856923801,0.837,3115.5,3114.8,2.97897432]
[1767856924012,0.06452133,3117.9,3115.2,2.97897432]
[1767856924013,2.95514326,3116.2,3115.2,2.97897432]
[1767856924217,3.20913962,3116.1,3115.3,2.97897432]
[1767856924392,6.16428288,3116.1,3115.3,2.97897432]
[1767856924723,6.16428288,3116.1,3115.3,8.03263744]
[1767856925803,9.3734225,3116.1,3115.3,8.03263744]
[1767856926017,6.16428288,3116.1,3115.3,3.78223806]
[1767856926832,6.16428288,3116.1,3115.4,2.97897432]
[1767856927206,9.3734225,3116.1,3115.4,2.97897432]
[1767856927628,2.95514326,3116.0,3115.4,2.97897432]
[1767856928128,2.95514326,3116.0,3115.0,6.18917325]
[1767856928298,2.95514326,3115.8,3115.1,0.61891732]
[1767856928499,2.95514326,3115.8,3115.1,3.59789164]
[1767856929494,2.95514326,3115.8,3115.1,6.80806078]
[1767856929699,2.95514326,3115.8,3115.1,3.59789164]
[1767856930326,2.95514326,3115.8,3115.1,6.80804947]
[1767856930525,2.95514326,3115.8,3115.2,0.68080495]
[1767856931728,2.95514326,3115.8,3115.2,3.65977927]
[1767856931914,2.95514326,3115.8,3115.2,2.97897432]
[1767856932245,6.16459651,3115.8,3115.2,2.97897432]
[1767856932543,2.95514326,3115.8,3115.2,2.97897432]
[1767856932745,2.95514326,3116.0,3115.2,2.97897432]
[1767856933622,2.95514326,3116.2,3115.3,2.97897432]
[1767856933845,9.40212664,3117.1,3115.7,2.97897432]
[1767856933846,2.95514326,3117.1,3115.7,2.97897432]
[1767856934021,2.95514326,3117.1,3115.4,2.97897432]
[1767856934217,2.95514326,3116.9,3115.4,2.97897432]
[1767856934418,2.95514326,3116.7,3115.2,2.97897432]
[1767856934617,9.62525667,3116.8,3115.2,6.80793197]
[1767856934618,2.95514326,3116.5,3115.2,6.80793197]
[1767856934819,2.95514326,3116.5,3115.2,3.59788358]
[1767856935221,2.95514326,3116.3,3114.8,2.97897432]
[1767856935648,2.95514326,3116.3,3114.9,2.97897432]
[1767856936642,2.95514326,3116.1,3114.9,2.97897432]
[1767856936919,2.95514326,3116.1,3114.7,2.97897432]
[1767856937142,2.95514326,3116.1,3114.6,0.002]
[1767856937345,2.95514326,3116.0,3114.6,0.38409743]
[1767856937531,9.62710992,3116.2,3114.7,2.97897432]
[1767856937743,2.95514326,3116.1,3114.7,2.97897432]
[1767856938368,2.95514326,3116.1,3114.9,2.97897432]
[1767856938661,6.41848522,3116.0,3114.9,2.97897432]
[1767856938867,2.95514326,3115.9,3115.0,2.97897432]
[1767856940879,9.37404048,3115.8,3115.0,2.97897432]
[1767856941473,6.16459187,3115.8,3115.0,2.97897432]
[1767856941854,2.95514326,3115.8,3115.0,2.97897432]
[1767856942181,2.95514326,3115.8,3115.1,3.59790659]
[1767856942376,2.95514326,3115.8,3115.1,2.97897432]
[1767856943277,2.95514326,3115.9,3115.1,2.97897432]
[1767856945352,6.16451622,3115.9,3115.1,2.97897432]
[1767856946271,0.837,3116.0,3115.2,2.97897432]
[1767856946577,3.209068,3116.2,3115.2,2.97897432]
[1767856946770,3.209068,3116.2,3115.4,2.97897432]
[1767856947095,6.16409805,3116.3,3115.4,2.97897432]
[1767856947899,6.16410332,3116.3,3115.5,2.97897432]
[1767856948100,2.95514326,3116.2,3115.5,2.97897432]
[1767856948303,2.95514326,3116.1,3115.3,2.97897432]
[1767856949376,0.001,3115.6,3115.3,2.97897432]
[1767856949705,2.95514326,3116.0,3115.2,3.2100578]
[1767856950291,2.95514326,3116.3,3115.4,2.97897432]
[1767856950600,2.95514326,3116.3,3115.1,2.97897432]
[1767856950798,2.95514326,3116.1,3115.0,3.21026989]
[1767856951000,2.95514326,3116.1,3115.1,2.97897432]
[1767856951373,2.95514326,3115.9,3115.1,2.97897432]
[1767856951772,2.95514326,3116.0,3115.2,2.97897432]
[1767856952002,2.95514326,3116.0,3115.1,3.21014459]
[1767856952172,2.95514326,3116.0,3115.2,0.32101446]
[1767856953208,2.95514326,3116.0,3115.0,3.0103107]
[1767856953605,3.15260581,3115.8,3115.0,3.0103107]
[1767856955009,3.15260581,3115.6,3114.8,3.0103107]
[1767856955814,3.15260581,3115.6,3114.9,3.0103107]
[1767856956011,3.15260581,3115.6,3114.9,3.95343949]
[1767856958214,3.15260581,3115.6,3114.9,7.16380169]
[1767856959014,3.15260581,3115.6,3115.0,3.0103107]
[1767856960609,3.15260581,3115.6,3114.8,3.21047476]
[1767856960610,3.15260581,3115.5,3114.8,3.0103107]
[1767856960831,3.15260581,3115.5,3115.2,0.002]
[1767856962244,3.15260581,3115.3,3115.2,0.002]
[1767856962742,3.20929609,3116.0,3115.2,0.002]
[1767856962743,3.15260581,3115.8,3115.2,0.002]
[1767856962942,3.15260581,3115.7,3115.2,0.002]
[1767856963236,6.36196751,3115.9,3115.2,3.0123107]
[1767856963436,3.15260581,3115.9,3115.2,3.0123107]
[1767856964417,6.36196163,3115.9,3115.2,3.0123107]
[1767856965241,7.31907272,3115.9,3115.2,3.0123107]
[1767856965728,4.16646691,3115.9,3115.2,3.0123107]
[1767856966034,3.15260581,3115.8,3115.2,3.0123107]
[1767856967731,6.36211398,3115.8,3115.2,3.0123107]
[1767856969769,3.15260581,3115.8,3115.2,3.0123107]
[1767856970470,6.36205645,3115.8,3115.2,3.0123107]
[1767856971475,3.20939266,3115.9,3115.2,3.0123107]
[1767856971675,6.36189081,3116.0,3115.3,3.0103107]
[1767856973544,0.001,3115.7,3115.3,3.0103107]
[1767856978373,0.001,3115.7,3115.2,0.002]
[1767856978562,3.15360581,3115.7,3115.2,0.002]
[1767856979774,3.15260581,3117.1,3115.2,3.31354177]
[1767856979943,3.15260581,3116.9,3115.6,3.0103107]
[1767856980643,3.15260581,3116.7,3115.6,3.0103107]
[1767856980838,3.15260581,3116.5,3115.6,3.0103107]
[1767856981241,3.15260581,3116.5,3115.2,5.35695213]
[1767856981242,3.15260581,3116.5,3115.4,3.0103107]
[1767856981864,3.15260581,3116.5,3115.2,6.52358287]
[1767856982366,3.15260581,3116.5,3115.3,3.24364045]
[1767856982578,14.67897773,3116.8,3115.7,3.24364045]
[1767856982579,9.65911215,3116.8,3115.7,3.24364045]
[1767856982878,3.24227437,3116.8,3116.1,3.24364045]
[1767856983050,6.45054659,3117.0,3116.2,3.24364045]
[1767856983370,6.45054659,3117.0,3116.2,3.88892433]
[1767856983552,9.65881881,3117.0,3116.2,3.88892433]
[1767856983874,3.04679467,3116.9,3116.2,3.88892433]
[1767856984773,3.04679467,3116.7,3115.9,3.22083652]
[1767856985590,3.04679467,3116.7,3115.8,0.32436405]
[1767856986569,3.04779467,3116.7,3115.8,0.32436405]
[1767856986776,0.001,3116.7,3115.9,3.22083652]
[1767856986986,0.001,3116.7,3116.0,3.89630141]
[1767856988677,3.04779467,3116.7,3116.0,3.89630141]
[1767856990284,6.25541945,3116.6,3116.0,0.67546489]
[1767856990786,9.46404423,3116.6,3115.8,3.54520057]
[1767856992765,3.04679467,3116.1,3115.2,0.002]
[1767856992965,3.04679467,3116.1,3114.8,3.2104495]
[1767856993165,3.04679467,3116.1,3114.9,3.22283652]
[1767856993789,3.04679467,3116.1,3114.9,6.43320615]
[1767856993971,3.35147414,3116.1,3115.0,4.36952924]
[1767856994888,3.04679467,3115.9,3115.0,4.36952924]
[1767856996189,3.04679467,3115.9,3114.9,0.002]
[1767856996794,3.04679467,3115.7,3114.9,0.002]
[1767856997467,3.04679467,3115.7,3114.9,3.22283652]
[1767856998904,6.2563654,3115.7,3114.9,3.22283652]
[1767856999104,9.46593613,3115.7,3114.9,3.22283652]
[1767856999411,3.04679467,3115.6,3114.9,3.22283652]
[1767856999982,3.04679467,3115.6,3115.2,0.002]
[1767857000307,3.04679467,3115.6,3114.9,0.002]
[1767857001086,9.46630999,3115.5,3114.9,0.002]
[1767857003787,3.04679467,3115.4,3114.9,0.002]
[1767857003987,3.99342567,3115.3,3114.9,0.002]
[1767857004199,0.946631,3115.3,3114.9,0.002]
[1767857006216,4.1566049,3115.3,3114.9,0.002]
[1767857008242,0.946631,3115.3,3114.9,0.002]
[1767857008413,6.41951532,3115.5,3114.9,0.002]
[1767857009400,6.25655233,3115.5,3114.9,0.002]
[1767857010104,3.20975766,3115.5,3114.9,3.22283652]
[1767857010304,6.41951532,3115.5,3114.9,3.22283652]
[1767857010834,6.25644931,3115.6,3114.9,3.22283652]
[1767857011009,3.85079896,3115.5,3114.9,3.22283652]
[1767857012049,3.85079896,3115.5,3115.2,0.002]
[1767857012246,3.85079896,3115.5,3114.9,3.22283652]
[1767857012416,3.85079896,3115.5,3114.3,0.002]
[1767857012417,3.19542792,3114.9,3114.3,0.002]
[1767857012616,3.19542792,3114.9,3113.6,0.002]
[1767857012617,3.19542792,3114.6,3113.6,0.002]
[1767857012854,3.19542792,3114.3,3113.6,0.002]
[1767857013142,0.14842792,3114.3,3113.6,3.0905586]
[1767857013405,3.19542792,3115.4,3113.9,3.15307993]
[1767857013602,0.837,3116.1,3113.9,3.15307993]
[1767857013603,3.19542792,3115.5,3114.5,8.14227966]
[1767857013813,3.19542792,3115.5,3114.1,0.06452133]
[1767857013814,0.837,3116.1,3114.9,3.0885586]
[1767857014028,3.20925998,3116.0,3115.2,3.0885586]
[1767857014170,6.4053355,3116.4,3115.5,3.0885586]
[1767857014372,3.19542792,3116.3,3115.4,5.05372106]
[1767857014590,3.19542792,3116.3,3115.5,0.50537211]
[1767857014811,0.001,3116.4,3115.9,3.0885586]
[1767857015777,5.05372106,3117.5,3115.7,8.26323829]
[1767857015778,0.27461753,3118.9,3116.3,3.15307993]
[1767857015977,0.16751904,3119.0,3117.8,3.0885586]
[1767857015978,3.37368889,3119.0,3117.8,3.0885586]
[1767857016177,6.4123397,3119.0,3118.0,3.0885586]
[1767857016392,0.28290924,3119.2,3118.0,3.0885586]
[1767857016579,0.28290924,3119.2,3117.7,5.05372106]
[1767857016580,0.28290924,3119.1,3117.7,3.0885586]
[1767857016900,4.59931197,3118.9,3117.7,3.0885586]
[1767857017113,0.77931753,3118.8,3117.7,3.0885586]
[1767857017877,0.48822212,3118.8,3117.7,3.0885586]
[1767857018284,1.39305336,3118.9,3117.8,3.15307993]
[1767857018483,3.43629814,3120.8,3118.9,3.0885586]
[1767857018484,6.40881852,3120.7,3118.9,3.0885586]
[1767857018728,3.20373633,3121.4,3118.9,3.0885586]
[1767857018729,1.69224941,3121.9,3119.8,0.06452133]
[1767857018943,0.96201175,3122.8,3119.8,0.06452133]
[1767857018944,3.20330495,3121.8,3120.6,3.0885586]
[1767857019085,0.3203305,3121.7,3120.6,3.0885586]
[1767857019485,6.40534447,3122.4,3120.6,3.0885586]
[1767857019716,3.20266461,3122.4,3120.6,3.0885586]
[1767857020015,7.98461341,3122.4,3120.6,3.0885586]
[1767857020218,1.57926894,3122.3,3120.6,3.0885586]
[1767857020425,1.57926894,3122.2,3120.6,3.0885586]
[1767857020639,1.57926894,3122.0,3120.6,3.0885586]
[1767857020921,1.57926894,3121.6,3119.4,3.0885586]
[1767857021085,1.45695611,3121.3,3119.4,3.0885586]
[1767857021284,0.837,3121.5,3119.5,3.0885586]
[1767857021527,0.837,3121.5,3120.1,3.0885586]
[1767857021697,1.45695611,3121.4,3120.1,3.0885586]
[1767857021882,1.45695611,3121.4,3119.3,3.20574833]
[1767857021883,1.33604816,3121.3,3119.7,3.0885586]
[1767857022219,1.33604816,3121.5,3119.7,3.0885586]
[1767857022516,0.837,3121.4,3119.8,3.0885586]
[1767857022702,3.20358801,3121.5,3120.3,3.0885586]
[1767857022904,6.40717602,3121.5,3120.3,3.0885586]
[1767857023336,6.40717602,3121.5,3119.9,0.30885586]
[1767857023337,1.21652896,3121.4,3119.9,3.0885586]
[1767857023484,3.19542792,3121.2,3119.1,3.0885586]
[1767857023690,3.19542792,3121.2,3119.4,3.0885586]
[1767857023899,12.81435204,3121.5,3118.6,3.0885586]
[1767857023900,3.19542792,3120.8,3118.6,3.0885586]
[1767857024215,0.16,3121.0,3118.6,3.0885586]
[1767857024216,3.19542792,3120.6,3118.6,3.0885586]
[1767857024381,4.03242792,3120.5,3118.7,3.0885586]
[1767857024588,3.19542792,3120.4,3118.7,3.0885586]
[1767857024794,9.605068,3120.3,3118.7,3.0885586]
[1767857025102,0.9605068,3120.2,3118.7,3.0885586]
[1767857025745,3.19542792,3120.1,3118.7,3.0885586]
[1767857025891,3.19542792,3120.1,3118.3,3.0885586]
[1767857026532,3.19542792,3120.1,3118.3,6.29541454]
[1767857026698,3.19542792,3120.1,3118.4,3.0885586]
[1767857026898,3.19542792,3120.1,3118.7,3.0885586]
[1767857026899,7.66284987,3120.0,3118.7,3.0885586]
[1767857027212,0.837,3119.9,3118.7,3.0885586]
[1767857028096,6.82584987,3120.0,3118.7,3.0885586]
[1767857028296,0.836,3119.9,3118.7,3.0885586]
[1767857028797,9.61600101,3119.8,3118.0,3.20717642]
[1767857029008,9.61600101,3119.8,3117.5,3.27221803]
[1767857029009,13.57761392,3119.8,3118.2,3.0885586]
[1767857029213,3.19542792,3119.7,3117.9,3.0885586]
[1767857029416,16.79285334,3119.8,3117.2,3.0885586]
[1767857029417,3.19542792,3118.7,3117.2,3.0885586]
[1767857029599,3.19542792,3118.5,3116.4,3.0885586]
[1767857029802,0.836,3118.6,3116.3,0.06452133]
[1767857029803,3.59857071,3118.4,3116.6,3.0885586]
[1767857030018,3.59857071,3118.4,3117.0,3.0885586]
[1767857030697,3.59857071,3118.4,3116.5,3.52398194]
[1767857030698,3.59857071,3118.4,3116.5,3.40386659]
[1767857030904,3.19542792,3118.2,3116.5,3.40386659]
[1767857032238,3.19542792,3118.2,3116.6,3.0885586]
[1767857032449,1.7979179,3118.1,3116.8,3.0885586]
[1767857032913,6.41436818,3118.0,3116.8,3.0885586]
[1767857033104,6.41436818,3118.0,3116.9,3.0885586]
[1767857033105,3.20718409,3118.0,3116.9,3.0885586]
[1767857033310,6.41436818,3118.0,3116.9,3.0885586]
[1767857033528,9.62155227,3118.0,3116.9,3.0885586]
[1767857033742,1.14194702,3117.9,3116.6,3.20862109]
[1767857034046,1.14194702,3117.9,3116.6,3.20860102]
[1767857034224,1.14194702,3117.9,3116.7,3.0885586]
[1767857034640,1.14194702,3117.9,3116.7,6.29707764]
[1767857035142,3.20738982,3117.8,3116.7,3.0885586]
[1767857035347,0.75566985,3117.7,3116.7,6.29707712]
[1767857035545,0.75566985,3117.7,3116.8,3.0885586]
[1767857035740,0.837,3117.7,3116.8,3.0905586]
[1767857037216,3.20759558,3117.6,3116.8,3.0905586]
[1767857037947,3.19542792,3117.5,3116.8,0.002]
[1767857038136,6.18730349,3117.4,3116.5,0.002]
[1767857038347,3.19542792,3117.3,3115.5,3.0885586]
[1767857039231,3.20790427,3117.3,3115.9,3.0885586]
[1767857039425,0.837,3117.2,3115.9,3.0885586]
[1767857039618,0.837,3117.2,3115.9,3.15307993]
[1767857039837,0.837,3117.2,3116.1,3.15307993]
[1767857040036,0.837,3117.8,3116.8,3.0885586]
[1767857040245,6.4135454,3118.4,3116.8,3.0885586]
[1767857040246,3.2067727,3118.4,3116.8,3.0885586]
[1767857040444,0.837,3118.3,3117.0,3.0885586]
[1767857040649,3.20636142,3118.8,3117.2,3.0885586]
[1767857040852,3.19542792,3119.8,3117.8,3.0885586]
[1767857041049,0.837,3119.7,3118.0,3.0885586]
[1767857041250,3.20553917,3119.6,3118.2,3.0885586]
[1767857041559,0.837,3119.7,3118.2,3.15307993]
[1767857041560,0.837,3119.5,3118.2,3.15307993]
[1767857042164,0.837,3119.5,3118.4,2.26127009]
[1767857042461,3.20436827,3120.8,3118.2,0.06452133]
[1767857042462,3.20509399,3120.1,3118.8,2.19674876]
[1767857042762,3.20502547,3120.1,3118.8,2.19674876]
[1767857042922,11.7663924,3120.1,3118.3,2.19674876]
[1767857043120,3.20502547,3120.1,3118.7,2.19674876]
[1767857043321,3.20502547,3120.1,3118.9,2.19674876]
[1767857043522,0.40420255,3120.0,3118.9,2.19674876]
[1767857043743,0.40420255,3120.0,3118.3,2.11341236]
[1767857043951,0.40420255,3120.0,3118.4,2.17793369]
[1767857044151,0.40420255,3120.0,3118.8,2.11341236]
[1767857044451,0.40420255,3120.0,3118.8,2.17793369]
[1767857044655,0.3609228,3119.9,3118.8,2.17793369]
[1767857044857,0.3609228,3119.9,3118.8,2.11341236]
[1767857045350,6.41066734,3119.8,3118.8,2.11341236]
[1767857045964,6.41066734,3119.8,3118.3,2.11341236]
[1767857046259,11.76092219,3119.8,3117.9,5.32062009]
[1767857046444,1.2121845,3119.7,3117.9,2.11341236]
[1767857046954,1.2121845,3119.7,3118.2,3.20695718]
[1767857047131,1.2121845,3119.7,3117.9,2.11341236]
[1767857047338,2.14492118,3119.5,3117.9,2.11341236]
[1767857047535,0.837,3119.4,3117.9,5.32069395]
[1767857047738,0.837,3119.4,3118.0,2.17793369]
[1767857047739,0.29819212,3119.3,3118.0,2.17793369]
[1767857047960,4.41763875,3119.7,3118.3,2.11341236]
[1767857048134,0.3609228,3119.9,3118.6,2.17793369]
[1767857048340,0.3609228,3119.9,3118.9,2.11341236]
[1767857048527,0.837,3120.2,3119.3,2.11341236]
[1767857048727,0.837,3120.2,3119.4,2.17793369]
[1767857049345,5.34830819,3121.7,3119.6,2.11341236]
[1767857049649,10.44886747,3121.2,3119.6,2.11341236]
[1767857050157,9.61186747,3121.2,3119.3,2.11341236]
[1767857050359,1.79728675,3121.1,3119.5,2.11341236]
[1767857050527,0.836,3121.0,3119.5,2.11341236]
[1767857050731,0.836,3120.9,3119.5,2.17793369]
[1767857051138,0.836,3120.9,3119.5,2.11341236]
[1767857051338,6.40861316,3120.8,3119.0,2.11341236]
[1767857051554,0.72446132,3120.7,3119.0,2.11341236]
[1767857051755,2.8693825,3120.7,3119.0,2.11341236]
[1767857052055,8.33222467,3119.9,3118.0,2.11341236]
[1767857052255,6.18730349,3119.5,3118.0,2.11341236]
[1767857052458,6.18730349,3119.5,3116.9,2.11341236]
[1767857052459,8.33222467,3119.1,3116.9,2.11341236]
[1767857052659,6.18730349,3118.4,3116.9,5.32172497]
[1767857052959,0.83322247,3119.0,3116.9,5.32172497]
[1767857052960,0.836,3118.5,3117.0,2.17793369]
[1767857053259,6.4135454,3118.4,3117.0,2.11341236]
[1767857053461,3.2067727,3118.4,3117.0,8.52973683]
[1767857053629,3.2067727,3118.4,3117.0,5.32152381]
[1767857053630,6.4135454,3118.4,3117.0,5.32152381]
[1767857053831,0.72495454,3118.3,3117.1,2.96639127]
[1767857054030,0.72495454,3118.3,3117.2,2.11341236]
[1767857055347,4.04268262,3118.5,3117.3,5.32131663]
[1767857055348,4.04267136,3118.5,3117.3,5.32131663]
[1767857055667,3.20667136,3118.5,3117.3,5.32131663]
[1767857055867,3.20656215,3118.7,3117.4,2.11341236]
[1767857056170,6.4131243,3118.7,3117.4,2.11341236]
[1767857056748,3.20656215,3118.7,3117.4,2.17793369]
[1767857056964,0.72489419,3118.6,3117.4,3.03730791]
[1767857057165,0.72489419,3118.6,3117.5,2.11341236]
[1767857057365,0.72489419,3118.6,3117.6,3.20759558]
[1767857057567,0.72489419,3118.6,3117.6,5.32100794]
[1767857057568,3.93146542,3118.6,3117.6,5.32100794]
[1767857057771,0.72489419,3118.6,3117.7,2.11341236]
[1767857058072,3.93149688,3118.6,3117.7,2.11341236]
[1767857058245,3.20592135,3119.3,3117.7,2.11341236]
[1767857058246,6.41190048,3119.2,3117.8,2.11341236]
[1767857058441,0.836,3119.1,3117.8,2.11341236]
[1767857058643,6.41190048,3119.2,3117.8,2.11341236]
[1767857058844,0.836,3119.1,3117.8,2.11341236]
[1767857059572,5.81598484,3119.5,3117.7,0.53210079]
[1767857059573,3.20593156,3119.3,3118.0,2.11341236]
[1767857059870,3.20593156,3119.3,3117.9,6.47909523]
[1767857059871,0.837,3119.5,3118.4,2.11341236]
[1767857060069,2.14492118,3120.1,3118.4,2.11341236]
[1767857060070,0.837,3119.8,3118.4,2.11341236]
[1767857060277,0.001,3119.4,3118.5,2.17793369]
[1767857060775,0.001,3119.4,3118.8,2.17793369]
[1767857061445,0.001,3119.4,3118.9,2.11341236]
[1767857061647,0.001,3119.4,3118.9,2.11224934]
[1767857063278,0.001,3119.4,3118.7,3.2063992]
[1767857063581,0.001,3119.4,3118.6,3.20656704]
[1767857063750,0.001,3119.4,3118.7,0.06452133]
[1767857064145,0.001,3119.4,3118.1,2.11341236]
[1767857064390,0.001,3119.4,3117.7,2.17793369]
[1767857064682,2.14592118,3119.4,3117.8,3.20738374]
[1767857064854,2.14592118,3119.4,3117.7,2.11341236]
[1767857064855,5.81698484,3119.4,3117.7,2.11341236]
[1767857065054,2.72661966,3119.3,3117.7,2.11341236]
[1767857065377,0.836,3119.2,3117.7,5.32088094]
[1767857065566,11.76308024,3119.1,3117.3,3.20788755]
[1767857065761,5.81598484,3118.9,3117.2,0.06452133]